bitfinex/quotes_SOLUSD_20251009
["timestamp","ask_amount","ask_price","bid_price","bid_amount"]
[1759980525247,7.9515118,225.9,225.86,0.66]
[1759980527344,7.2715118,225.9,225.86,0.66]
[1759980527946,5.10648835,225.92,225.87,0.67]
[1759980528160,2.84477248,225.91,225.88,0.67]
[1759980528347,3.52477248,225.91,225.86,0.67]
[1759980528546,3.52477248,225.91,225.87,0.67]
[1759980529161,4.42673749,225.9,225.87,0.67]
[1759980530064,4.42673749,225.9,225.85,4.42763426]
[1759980530306,7.27132021,225.91,225.86,0.67]
[1759980530565,2.84477248,225.93,225.86,5.09748563]
[1759980530769,2.84477248,225.93,225.87,0.67]
[1759980531150,20.8,225.97,225.87,0.67]
[1759980531462,3.52477248,225.95,225.88,10.87647521]
[1759980531668,3.52477248,225.95,225.89,0.67]
[1759980532972,4.42595379,225.94,225.89,0.67]
[1759980533157,4.42595379,225.94,225.9,0.67]
[1759980533672,5.10595379,225.94,225.9,0.67]
[1759980534169,0.68,225.93,225.87,32.05]
[1759980534481,2.84477248,225.92,225.87,32.05]
[1759980534768,2.84477248,225.92,225.88,0.67]
[1759980536069,5.10664877,225.91,225.87,31.38]
[1759980536270,4.42664877,225.91,225.87,32.05]
[1759980536657,2.84477248,225.9,225.87,32.05]
[1759980538877,2.84477248,225.9,225.88,0.67]
[1759980539952,1.82182065,225.91,225.88,0.67]
[1759980540366,1.82182065,225.91,225.87,31.38]
[1759980540581,6.24797034,225.93,225.89,0.67]
[1759980540754,6.24797034,225.93,225.9,0.67]
[1759980541055,6.24797034,225.93,225.88,0.67]
[1759980541254,6.92797034,225.93,225.88,0.67]
[1759980542587,1.82182065,225.91,225.83,0.2]
[1759980542759,1.82182065,225.84,225.83,0.2]
[1759980543074,1.82182065,225.86,225.83,0.2]
[1759980543276,1.82182065,225.86,225.83,0.87]
[1759980543572,1.82182065,225.89,225.84,11.54647521]
[1759980543778,1.82182065,225.89,225.85,0.67]
[1759980543967,1.82182065,225.89,225.86,0.67]
[1759980544468,6.24884305,225.89,225.86,0.67]
[1759980545748,1.82182065,225.87,225.83,0.92]
[1759980545953,2.49182065,225.87,225.83,0.2]
[1759980546479,6.91925657,225.87,225.83,0.2]
[1759980547571,1.82182065,225.85,225.83,0.2]
[1759980547875,0.67,225.86,225.83,0.2]
[1759980548179,1.82182065,225.86,225.83,0.2]
[1759980549779,4.42771751,225.85,225.83,0.2]
[1759980550084,4.42771751,225.85,225.82,0.42]
[1759980550581,5.09771751,225.85,225.81,31.38]
[1759980550778,4.42771751,225.85,225.81,31.38]
[1759980551360,0.67,225.84,225.81,31.38]
[1759980551767,4.42771751,225.85,225.81,31.38]
[1759980552075,0.67,225.84,225.81,31.38]
[1759980552969,5.09795213,225.84,225.81,31.38]
[1759980553760,4.42795213,225.84,225.81,32.1]
[1759980553955,4.42795213,225.84,225.81,31.38]
[1759980554176,4.42773042,225.85,225.82,0.72]
[1759980555179,0.67,225.86,225.82,0.72]
[1759980555376,5.0975261,225.86,225.82,0.72]
[1759980557975,6.91934675,225.86,225.82,0.72]
[1759980561273,1.82182065,225.86,225.83,0.72]
[1759980561578,1.82182065,225.86,225.84,0.72]
[1759980562089,1.82182065,225.86,225.82,0.72]
[1759980562282,4.42693346,225.89,225.83,0.72]
[1759980562490,6.24875411,225.89,225.83,0.72]
[1759980562986,6.91875411,225.89,225.83,0.72]
[1759980563784,5.09693346,225.89,225.83,0.72]
[1759980563998,11.06666913,225.91,225.83,5.14807728]
[1759980563999,0.67,225.91,225.83,5.14807728]
[1759980564196,2.49182065,225.9,225.84,0.72]
[1759980564358,6.91874534,225.9,225.84,5.14789469]
[1759980564565,6.91874534,225.9,225.85,0.72]
[1759980564782,6.91874534,225.9,225.86,0.72]
[1759980565303,1.82182065,225.9,225.87,0.72]
[1759980565491,6.9181841,225.92,225.88,0.72]
[1759980566363,6.2481841,225.92,225.88,0.72]
[1759980566565,6.9181841,225.92,225.88,0.72]
[1759980567387,2.49182065,225.92,225.88,0.72]
[1759980568581,1.82182065,225.92,225.87,4.42725665]
[1759980568781,2.49182065,225.92,225.87,4.42725665]
[1759980568969,2.49182065,225.92,225.88,0.72]
[1759980569169,1.82182065,225.92,225.89,0.72]
[1759980569496,2.49182065,225.92,225.87,5.14725665]
[1759980569680,2.49182065,225.92,225.88,0.72]
[1759980570079,2.49182065,225.94,225.89,0.72]
[1759980570270,0.67,225.93,225.89,0.72]
[1759980570471,0.67,225.92,225.89,0.72]
[1759980570679,0.67,225.92,225.87,5.14725665]
[1759980570993,0.67,225.92,225.88,0.72]
[1759980572206,6.91818642,225.92,225.86,10.87647521]
[1759980572507,1.82182065,225.9,225.88,20.8]
[1759980572995,0.67,225.89,225.88,20.8]
[1759980573875,0.67,225.89,225.84,5.14780762]
[1759980574078,2.49182065,225.88,225.86,20.8]
[1759980574280,0.67,225.87,225.83,31.36]
[1759980574490,1.82182065,225.88,225.83,31.36]
[1759980574690,2.49182065,225.88,225.83,32.08]
[1759980575086,2.49182065,225.88,225.83,31.36]
[1759980575293,2.49182065,225.88,225.84,0.72]
[1759980575582,0.67,225.88,225.84,0.72]
[1759980576478,6.91847499,225.91,225.85,0.66]
[1759980577704,5.09665434,225.91,225.85,5.08766996]
[1759980579413,0.67,225.91,225.84,4.42791356]
[1759980579583,136.12182065,225.92,225.86,21.46]
[1759980579904,136.12182065,225.92,225.87,0.66]
[1759980580207,0.67,225.91,225.87,0.66]
[1759980580404,136.12182065,225.92,225.87,0.66]
[1759980580586,0.67,225.9,225.86,20.8]
[1759980580788,0.67,225.9,225.86,25.88740317]
[1759980581509,0.67,225.9,225.86,21.46]
[1759980581681,0.67,225.9,225.86,25.8874628]
[1759980582678,6.24836243,225.91,225.86,25.2274628]
[1759980582881,1.82182065,225.91,225.87,5.08728305]
[1759980583101,141.21819601,225.92,225.87,5.08728305]
[1759980583304,0.67,225.91,225.87,5.08728305]
[1759980583508,136.12182065,225.92,225.88,0.69]
[1759980583717,136.83182065,225.92,225.88,0.69]
[1759980583886,0.71,225.91,225.87,4.42728305]
[1759980584081,0.71,225.91,225.88,0.69]
[1759980584391,136.12182065,225.92,225.88,0.69]
[1759980584617,136.83182065,225.92,225.88,0.69]
[1759980586211,141.25817501,225.92,225.88,0.69]
[1759980586393,0.71,226.02,225.89,0.69]
[1759980586711,0.71,226.04,225.97,20.8]
[1759980586914,1.82182065,226.04,225.99,4.42497455]
[1759980587209,0.71,226.03,225.98,31.34]
[1759980587412,0.71,226.02,225.98,31.34]
[1759980587798,2.53182065,226.02,225.99,31.34]
[1759980588303,0.71,226.01,225.99,31.34]
[1759980588504,2.53182065,226.0,225.93,10.87647521]
[1759980588708,1.82182065,225.96,225.92,20.8]
[1759980588893,2.53182065,225.95,225.93,31.34]
[1759980589487,38.6272826,226.05,225.89,10.87647521]
[1759980589488,2.53182065,225.94,225.89,10.87647521]
[1759980589691,0.71,225.93,225.9,31.34]
[1759980590328,1.82182065,225.94,225.9,31.34]
[1759980590492,2.53182065,225.94,225.9,31.34]
[1759980590694,2.53182065,225.94,225.89,10.87647521]
[1759980590995,2.53182065,225.94,225.9,31.34]
[1759980591823,2.53182065,225.94,225.89,11.56647521]
[1759980591992,2.53182065,225.94,225.9,31.34]
[1759980592504,2.53182065,225.94,225.9,32.03]
[1759980592891,1.82182065,225.92,225.88,20.8]
[1759980593210,2.53182065,225.92,225.89,31.32]
[1759980593914,1.82182065,225.91,225.89,31.32]
[1759980594129,2.53182065,225.91,225.89,31.32]
[1759980594298,1.82182065,225.9,225.89,31.32]
[1759980594713,2.53182065,225.9,225.89,31.32]
[1759980595715,1.82182065,225.9,225.89,31.32]
[1759980596528,1.82182065,225.9,225.88,31.32]
[1759980597029,1.82182065,225.9,225.87,31.32]
[1759980597030,6.24856127,225.9,225.87,31.32]
[1759980597625,4.42674062,225.9,225.87,31.32]
[1759980597837,4.42674062,225.9,225.87,32.01]
[1759980598534,1.82182065,225.9,225.87,31.32]
[1759980598835,1.82182065,225.88,225.85,52.12]
[1759980599005,2.53182065,225.88,225.85,31.32]
[1759980599934,3.55733735,225.88,225.85,31.32]
[1759980600227,2.84733735,225.89,225.85,32.01]
[1759980600811,4.42693346,225.89,225.85,32.01]
[1759980601127,2.84733735,225.9,225.86,0.69]
[1759980601326,2.84733735,225.9,225.87,0.69]
[1759980601522,7.27412127,225.9,225.87,0.69]
[1759980601723,0.71,225.97,225.85,31.32]
[1759980601927,0.71,226.01,225.89,10.87647521]
[1759980602229,0.71,226.01,225.88,21.49]
[1759980602230,3.55733735,226.01,225.91,10.87647521]
[1759980602421,2.84733735,226.01,225.92,0.69]
[1759980602728,2.84733735,226.01,225.93,10.87647521]
[1759980602912,2.84733735,226.01,225.94,36.43595379]
[1759980603108,2.84733735,226.01,225.95,0.69]
[1759980603431,7.27201346,226.01,225.95,0.69]
[1759980603733,2.84733735,226.01,225.95,0.69]
[1759980603935,7.27192901,226.01,225.95,0.69]
[1759980604128,2.84733735,226.01,225.95,0.69]
[1759980604327,2.84733735,226.02,225.95,0.69]
[1759980604530,20.36,226.1,225.96,31.67647521]
[1759980604531,0.71,226.05,225.96,31.67647521]
[1759980604717,3.55733735,226.05,225.97,0.69]
[1759980604915,0.71,226.07,225.98,31.32]
[1759980605121,2.84733735,226.06,225.99,0.69]
[1759980606423,2.84733735,226.05,225.99,13.95443798]
[1759980606612,2.84733735,226.05,225.99,0.69]
[1759980607437,2.84733735,226.04,225.99,0.69]
[1759980607832,3.52733735,226.04,225.99,5.11497213]
[1759980608130,0.68,226.06,226.0,0.69]
[1759980608342,2.84733735,226.04,226.0,0.69]
[1759980608511,2.84733735,226.04,226.0,32.01]
[1759980609527,4.42395441,226.05,226.0,32.01]
[1759980609714,2.84733735,226.04,226.0,32.01]
[1759980609910,2.84733735,226.04,226.0,31.32]
[1759980610118,2.84733735,226.04,226.0,32.01]
[1759980610312,2.84733735,226.04,226.01,0.69]
[1759980610621,7.95129176,226.05,226.01,0.69]
[1759980611839,7.27129176,226.05,225.97,4.42527735]
[1759980612038,2.84733735,226.0,225.95,20.8]
[1759980612246,2.84733735,225.98,225.94,31.3]
[1759980612427,3.52733735,225.98,225.94,31.3]
[1759980612737,0.68,225.98,225.94,31.3]
[1759980612916,2.84733735,226.0,225.95,0.69]
[1759980613112,2.84733735,226.02,225.96,0.69]
[1759980613715,5.10395441,226.05,225.96,5.1154217]
[1759980614017,7.95129176,226.05,225.97,0.69]
[1759980614321,2.84733735,226.03,225.97,0.69]
[1759980614632,5.10395441,226.05,225.97,24.33351553]
[1759980614633,2.84351553,226.04,225.97,24.33351553]
[1759980615243,5.10395441,226.05,225.98,42.17647521]
[1759980615416,2.84351553,226.04,225.98,42.86647521]
[1759980615848,2.84351553,226.04,225.98,47.29150269]
[1759980616143,7.26752573,226.04,225.98,47.29150269]
[1759980616939,7.26752573,226.04,225.98,42.86647521]
[1759980617241,2.84351553,225.99,225.87,7.41591302]
[1759980617441,2.84351553,225.89,225.84,0.69]
[1759980617744,2.84351553,225.89,225.85,0.69]
[1759980618151,4.42673749,225.9,225.85,0.69]
[1759980618152,7.27025302,225.9,225.85,0.69]
[1759980618316,2.84351553,225.89,225.85,0.69]
[1759980618637,5.10673749,225.9,225.85,0.69]
[1759980618822,2.84351553,225.89,225.85,0.69]
[1759980619022,2.84351553,225.87,225.85,0.69]
[1759980619643,2.84351553,225.87,225.82,13.25582826]
[1759980619843,4.4258396,225.95,225.87,10.87647521]
[1759980620141,3.99857751,226.02,225.89,10.87647521]
[1759980620142,2.84351553,225.94,225.89,10.87647521]
[1759980620376,3.52351553,225.94,225.89,42.86647521]
[1759980620525,2.84351553,225.94,225.9,0.69]
[1759980620724,2.84351553,225.94,225.91,0.69]
[1759980621637,2.84351553,225.94,225.91,4.42652374]
[1759980621822,2.84351553,225.96,225.92,0.69]
[1759980622022,2.84351553,225.96,225.92,20.8]
[1759980622437,2.84351553,225.96,225.93,0.69]
[1759980622643,2.84351553,225.96,225.92,25.22630092]
[1759980622829,4.42527644,225.98,225.94,0.69]
[1759980623047,2.84351553,225.98,225.94,0.69]
[1759980623358,0.68,226.03,225.96,10.87647521]
[1759980623643,0.68,226.05,225.97,21.49]
[1759980623851,2.84351553,226.01,225.97,21.49]
[1759980624158,2.84351553,226.01,225.98,0.69]
[1759980624340,2.84351553,226.01,225.97,52.1]
[1759980624855,2.84351553,226.01,225.97,52.79]
[1759980626033,2.84351553,226.01,225.97,57.21533729]
[1759980628154,2.84351553,226.01,225.98,0.69]
[1759980628347,2.84351553,226.03,225.99,0.69]
[1759980628548,0.68,226.07,226.0,0.69]
[1759980628549,2.84351553,226.05,226.0,0.69]
[1759980628730,2.84351553,226.05,226.01,0.69]
[1759980629054,0.68,226.1,226.02,0.69]
[1759980629242,2.84351553,226.07,226.02,0.69]
[1759980629557,2.84351553,226.07,226.03,0.69]
[1759980629747,2.84351553,226.07,226.04,0.69]
[1759980630056,2.84351553,226.06,226.01,36.41452711]
[1759980630255,2.84351553,226.06,226.02,0.69]
[1759980631454,2.84351553,226.06,226.03,0.69]
[1759980631735,2.84351553,226.06,226.01,35.72452711]
[1759980631933,2.84351553,226.06,226.02,0.69]
[1759980633140,2.84351553,226.06,226.03,0.69]
[1759980633354,2.84351553,226.07,226.03,0.69]
[1759980633939,2.84351553,226.06,226.03,0.69]
[1759980634149,4.42325743,226.08,226.03,0.69]
[1759980634350,2.84351553,226.06,226.03,0.69]
[1759980634738,4.42203944,226.14,226.04,11.56647521]
[1759980634944,2.84351553,226.11,226.05,31.99]
[1759980635251,2.84351553,226.09,226.05,31.3]
[1759980635446,2.84351553,226.09,226.05,31.99]
[1759980636834,2.84351553,226.09,226.02,0.65]
[1759980636835,0.66,226.08,226.02,0.65]
[1759980637037,2.84351553,226.05,226.04,20.8]
[1759980637661,2.84351553,226.05,226.01,76.21983256]
[1759980637957,2.84351553,226.05,226.01,63.62647521]
[1759980638167,0.66,226.04,225.96,13.07637852]
[1759980638352,2.84351553,225.97,225.89,0.65]
[1759980638658,16.14467016,226.03,225.89,0.65]
[1759980638659,2.84351553,225.94,225.89,0.65]
[1759980638869,2.84351553,225.94,225.9,20.8]
[1759980639058,15.48467016,226.03,225.9,20.8]
[1759980639268,2.84351553,225.94,225.9,20.8]
[1759980639448,2.84351553,225.92,225.88,13.1779455]
[1759980639650,2.84351553,225.92,225.87,31.3]
[1759980639856,2.84351553,225.92,225.87,52.75]
[1759980640278,2.84351553,225.92,225.88,13.71999074]
[1759980640279,4.4263456,225.92,225.88,13.71999074]
[1759980640476,7.26986113,225.92,225.88,10.87647521]
[1759980641180,2.84351553,225.89,225.81,0.65]
[1759980641389,2.84351553,225.87,225.83,10.87647521]
[1759980641583,2.84351553,225.88,225.83,11.52647521]
[1759980641889,2.84351553,225.87,225.83,11.52647521]
[1759980642259,7.27092893,225.87,225.83,10.87647521]
[1759980643260,2.84351553,225.87,225.83,10.87647521]
[1759980643584,2.84351553,225.87,225.83,11.53647521]
[1759980643757,4.42715183,225.88,225.83,10.87647521]
[1759980643956,7.27066736,225.88,225.84,0.66]
[1759980644991,7.27066736,225.88,225.83,10.87647521]
[1759980645478,7.98066736,225.88,225.83,11.53647521]
[1759980646166,7.27066736,225.88,225.83,11.53647521]
[1759980646577,7.98066736,225.88,225.83,11.53647521]
[1759980648555,5.13715183,225.88,225.83,11.53647521]
[1759980648752,7.98066736,225.88,225.83,11.53647521]
[1759980650278,5.13715183,225.88,225.83,14.37999074]
[1759980650870,5.13715183,225.88,225.82,56.52829487]
[1759980650871,7.27066736,225.88,225.82,20.8]
[1759980651072,2.84351553,225.85,225.79,2.84351553]
[1759980651385,3.55351553,225.85,225.78,55.14351553]
[1759980651770,2.84351553,225.85,225.78,55.80351553]
[1759980651964,3.55351553,225.84,225.78,52.96]
[1759980652195,4.42810963,225.83,225.78,52.96]
[1759980652561,2.84351553,225.82,225.78,52.96]
[1759980653097,2.84351553,225.82,225.78,31.5]
[1759980653297,4.42810963,225.83,225.78,0.2]
[1759980653298,2.84351553,225.8,225.78,0.2]
[1759980653799,0.71,225.79,225.78,0.2]
[1759980654197,5.1388941,225.79,225.78,0.2]
[1759980657787,7.98240963,225.79,225.78,0.2]
[1759980661879,6.96299945,225.79,225.78,0.2]
[1759980665582,0.71,225.82,225.78,0.2]
[1759980665775,1.82410535,225.79,225.78,0.2]
[1759980668095,4.42850183,225.81,225.78,0.2]
[1759980668275,1.82410535,225.8,225.79,0.66]
[1759980668474,6.25260718,225.81,225.8,0.66]
[1759980668775,6.25260718,225.81,225.78,0.2]
[1759980668976,1.82410535,225.81,225.79,0.66]
[1759980669279,15.49849912,225.83,225.78,0.2]
[1759980669495,1.82410535,225.79,225.78,0.2]
[1759980670166,1.82410535,225.8,225.78,0.86]
[1759980670370,6.25248302,225.82,225.78,0.86]
[1759980670571,6.93248302,225.82,225.78,0.86]
[1759980670800,6.25248302,225.82,225.78,0.86]
[1759980671004,6.93248302,225.82,225.78,0.2]
[1759980671182,1.82410535,225.8,225.78,0.2]
[1759980671587,1.82410535,225.79,225.78,0.2]
[1759980672087,6.25299945,225.79,225.78,0.2]
[1759980672404,6.93299945,225.79,225.78,0.2]
[1759980676396,166.16947249,225.85,225.78,0.86]
[1759980676598,1.82410535,225.82,225.78,0.86]
[1759980676806,1.82410535,225.83,225.79,0.66]
[1759980678204,140.55201891,225.84,225.79,5.08888841]
[1759980678388,140.55201891,225.84,225.79,0.66]
[1759980678596,140.55201891,225.84,225.8,0.66]
[1759980679614,140.55201891,225.84,225.81,0.66]
[1759980680195,4.42772413,225.85,225.82,0.66]
[1759980680508,6.25182948,225.85,225.82,0.66]
[1759980681721,1.82410535,225.85,225.82,0.66]
[1759980683090,31.32,225.88,225.83,0.66]
[1759980683091,4.42730169,225.88,225.83,0.66]
[1759980683300,1.82410535,225.88,225.83,0.66]
[1759980683685,1.82410535,225.88,225.83,21.46]
[1759980683885,1.82410535,225.88,225.84,0.66]
[1759980684113,1.82410535,225.88,225.85,0.66]
[1759980684335,1.82410535,225.86,225.83,20.8]
[1759980684642,1.82410535,225.84,225.79,20.8]
[1759980684799,1.82410535,225.82,225.79,21.46]
[1759980685000,1.82410535,225.82,225.8,0.66]
[1759980685222,1.82410535,225.83,225.8,0.66]
[1759980685430,1.82410535,225.83,225.81,0.66]
[1759980685729,1.82410535,225.84,225.82,0.66]
[1759980685905,1.82410535,225.85,225.82,0.66]
[1759980686424,6.2519025,225.85,225.82,0.66]
[1759980686622,33.14410535,225.87,225.83,0.66]
[1759980686924,31.32,225.87,225.84,0.66]
[1759980687224,6.93141989,225.88,225.84,0.66]
[1759980688820,6.25141989,225.88,225.84,0.66]
[1759980689198,6.93141989,225.88,225.84,0.66]
[1759980689717,1.82410535,225.87,225.84,0.66]
[1759980690717,138.7269109,225.9,225.85,0.66]
[1759980691015,138.7269109,225.9,225.85,5.08763886]
[1759980691219,31.3,225.92,225.85,6.91174421]
[1759980691420,33.12410535,225.92,225.86,0.66]
[1759980692014,37.55045922,225.92,225.86,0.66]
[1759980693029,1.82410535,225.92,225.87,20.8]
[1759980693220,1.82410535,225.92,225.88,0.66]
[1759980693421,6.25048142,225.92,225.88,0.66]
[1759980693921,6.93048142,225.92,225.88,0.66]
[1759980695025,6.93050105,225.92,225.88,0.66]
[1759980695531,1.82410535,225.91,225.87,20.8]
[1759980695733,1.82410535,225.91,225.87,21.49]
[1759980695912,1.82410535,225.91,225.87,20.8]
[1759980696110,2.54410535,225.9,225.87,20.8]
[1759980696323,0.72,225.89,225.87,20.8]
[1759980697021,1.82410535,225.9,225.87,20.8]
[1759980697223,2.54410535,225.9,225.87,20.8]
[1759980698515,1.82410535,225.91,225.88,0.69]
[1759980698720,1.82410535,225.91,225.89,0.69]
[1759980699533,6.25056864,225.92,225.87,20.8]
[1759980699729,2.54410535,225.91,225.87,20.8]
[1759980700110,2.54410535,225.91,225.87,21.49]
[1759980700926,0.72,225.94,225.88,11.56647521]
[1759980701110,4.4263456,225.92,225.88,11.56647521]
[1759980701310,6.25028206,225.93,225.89,0.69]
[1759980702632,2.54410535,225.93,225.89,0.69]
[1759980704118,4.42595379,225.94,225.88,15.30357736]
[1759980704430,1.82410535,225.93,225.89,0.68]
[1759980704634,6.25005914,225.94,225.9,0.68]
[1759980704839,6.97005914,225.94,225.9,0.68]
[1759980705829,6.97005914,225.94,225.88,17.12768271]
[1759980706038,6.97005914,225.94,225.88,17.80768271]
[1759980706233,1.82410535,225.93,225.88,11.55647521]
[1759980706410,1.82410535,225.93,225.88,10.87647521]
[1759980706411,2.54410535,225.93,225.88,10.87647521]
[1759980706731,2.54410535,225.93,225.89,0.68]
[1759980708236,6.97028161,225.93,225.89,0.68]
[1759980710039,1.82410535,225.92,225.89,0.68]
[1759980711339,2.54410535,225.92,225.88,42.15647521]
[1759980711629,1.82410535,225.92,225.89,0.68]
[1759980713219,1.82410535,225.92,225.88,42.15647521]
[1759980713421,1.82410535,225.92,225.87,25.22730641]
[1759980713422,1.82410535,225.89,225.78,0.2]
[1759980713634,1.82410535,225.87,225.82,10.87647521]
[1759980713940,1.82410535,225.87,225.83,0.68]
[1759980714118,1.82410535,225.87,225.84,0.68]
[1759980714524,6.25143669,225.87,225.84,0.68]
[1759980715220,6.25123443,225.89,225.85,21.48]
[1759980715422,6.25123443,225.89,225.86,0.68]
[1759980715816,1.82410535,225.88,225.85,20.8]
[1759980716143,1.82410535,225.87,225.85,20.8]
[1759980717630,6.25135151,225.88,225.85,20.8]
[1759980717831,6.97135151,225.88,225.85,20.8]
[1759980718737,2.54410535,225.87,225.82,32.35647521]
[1759980718929,2.54410535,225.87,225.83,0.68]
[1759980719129,1.82410535,225.86,225.83,0.68]
[1759980719445,1.82410535,225.86,225.82,31.67647521]
[1759980719625,1.82410535,225.86,225.82,32.35647521]
[1759980720033,1.82410535,225.86,225.83,0.68]
[1759980720733,1.82410535,225.86,225.82,36.10477172]
[1759980720934,1.82410535,225.86,225.83,0.68]
[1759980721145,2.54410535,225.86,225.83,31.28]
[1759980721844,2.54410535,225.86,225.78,2.02410535]
[1759980721845,1.82410535,225.84,225.78,0.2]
[1759980722040,1.82410535,225.8,225.78,0.2]
[1759980722218,2.54410535,225.8,225.78,0.2]
[1759980723141,2.54410535,225.79,225.78,0.2]
[1759980723932,3.57043991,225.79,225.78,0.2]
[1759980724133,7.99933401,225.79,225.78,0.2]
[1759980730029,7.99933401,225.79,225.78,1e-08]
[1759980732636,7.27933401,225.79,225.78,1e-08]
[1759980732950,138.72843387,225.82,225.78,0.69000001]
[1759980733157,2.85043991,225.81,225.78,0.69000001]
[1759980733456,2.85043991,225.81,225.79,0.69]
[1759980733947,2.85043991,225.81,225.78,1e-08]
[1759980734154,2.85043991,225.8,225.78,1e-08]
[1759980734350,2.85043991,225.79,225.78,1e-08]
[1759980734727,3.51043991,225.79,225.78,1e-08]
[1759980736359,7.93933401,225.79,225.78,1e-08]
[1759980736852,7.27933401,225.79,225.78,1e-08]
[1759980737758,2.85043991,225.79,225.78,0.69000001]
[1759980737969,7.27925657,225.8,225.78,0.69000001]
[1759980738775,2.85043991,225.79,225.78,1e-08]
[1759980740947,7.27933401,225.79,225.78,1e-08]
[1759980743166,7.27933401,225.79,225.78,0.69000001]
[1759980745666,2.85043991,225.79,225.78,0.69000001]
[1759980745865,2.85043991,225.79,225.78,1e-08]
[1759980746954,7.27933401,225.79,225.78,1e-08]
[1759980749465,7.97933401,225.79,225.78,1e-08]
[1759980755271,4.4288941,225.79,225.78,1e-08]
[1759980755498,4.42867317,225.81,225.78,0.69000001]
[1759980756556,3.51043991,225.8,225.78,1e-08]
[1759980756750,2.85043991,225.79,225.78,1e-08]
[1759980757055,3.51043991,225.79,225.78,1e-08]
[1759980757268,7.93933401,225.79,225.78,1e-08]
[1759980757470,7.27933401,225.79,225.78,1e-08]
[1759980758076,7.27916411,225.8,225.78,1e-08]
[1759980758265,4.4287242,225.8,225.78,0.72000001]
[1759980758468,4.4287242,225.8,225.79,0.72]
[1759980758668,4.4287242,225.8,225.78,1e-08]
[1759980758873,4.4287242,225.8,225.78,0.72000001]
[1759980759177,4.42853756,225.81,225.79,0.72]
[1759980759484,4.42853756,225.81,225.8,0.72]
[1759980759684,4.42853756,225.81,225.78,0.72000001]
[1759980759865,4.42853756,225.81,225.78,1e-08]
[1759980760073,4.42853756,225.81,225.78,0.72000001]
[1759980761382,4.42853756,225.81,225.78,1e-08]
[1759980761562,4.42853756,225.81,225.78,0.72000001]
[1759980761761,4.42853756,225.81,225.79,0.72]
[1759980762072,12.64956415,225.92,225.78,1e-08]
[1759980762073,11.72851741,225.87,225.8,3.57043991]
[1759980762379,14.57895732,225.87,225.81,0.72]
[1759980763188,4.42752147,225.86,225.81,0.72]
[1759980763378,4.42752147,225.86,225.8,2.85043991]
[1759980763579,4.42752147,225.86,225.82,0.67]
[1759980763981,4.42752147,225.86,225.83,0.67]
[1759980764181,4.427331,225.87,225.83,0.67]
[1759980764682,4.427331,225.87,225.84,0.67]
[1759980765287,5.11672918,225.91,225.85,3.52043991]
[1759980765503,2.85043991,225.93,225.86,3.52043991]
[1759980765683,3.54043991,225.94,225.87,3.52043991]
[1759980765886,3.54043991,225.94,225.88,0.67]
[1759980766690,7.96641538,225.94,225.88,0.67]
[1759980768765,7.96641538,225.94,225.88,5.09709183]
[1759980769067,8.26560212,225.95,225.9,2.85043991]
[1759980769264,16.23180537,225.95,225.89,13.72691512]
[1759980769570,16.23180537,225.95,225.83,16.1403595]
[1759980769571,2.85043991,225.9,225.85,62.93647521]
[1759980769782,3.54043991,225.9,225.85,62.93647521]
[1759980769986,3.54043991,225.9,225.86,0.67]
[1759980770525,2.85043991,225.91,225.85,67.36413793]
[1759980770669,2.85043991,225.91,225.87,0.67]
[1759980771003,7.96694936,225.92,225.87,0.67]
[1759980771990,5.11650945,225.92,225.87,0.67]
[1759980772167,5.11650945,225.92,225.85,38.95457784]
[1759980772168,2.85043991,225.94,225.88,3.52043991]
[1759980772371,20.01999689,225.95,225.89,0.67]
[1759980772372,8.26560212,225.95,225.89,0.67]
[1759980772591,8.26560212,225.95,225.89,3.52043991]
[1759980772792,8.26560212,225.95,225.9,0.67]